bitfinex-derivatives/quotes_BTCF0:USTF0_20240902
["timestamp","ask_amount","ask_price","bid_price","bid_amount"]
[1725262664581,0.3214275,57521.0,57518.0,0.0496]
[1725262664787,0.0004,57519.0,57518.0,0.0496]
[1725262665178,0.19815878,57519.0,57518.0,0.0496]
[1725262667282,0.19915878,57519.0,57518.0,0.0496]
[1725262667885,0.26001078,57519.0,57518.0,0.0496]
[1725262669290,0.26001078,57519.0,57508.0,0.06943065]
[1725262669291,0.060863,57509.0,57508.0,0.06943065]
[1725262669488,0.060863,57509.0,57506.0,0.06943065]
[1725262669489,0.92850002,57509.0,57506.0,0.06943065]
[1725262669687,0.92850002,57509.0,57504.0,0.0461]
[1725262669688,0.1404,57507.0,57504.0,0.11549065]
[1725262669885,0.0004,57505.0,57504.0,0.11549065]
[1725262670190,0.20121392,57505.0,57504.0,0.11549065]
[1725262670380,0.060869,57503.0,57502.0,0.0453]
[1725262670584,0.5012,57503.0,57498.0,0.0461]
[1725262670794,0.1404,57499.0,57498.0,0.0911]
[1725262671090,0.32363,57499.0,57498.0,0.0911]
[1725262671792,0.18363,57499.0,57498.0,0.0911]
[1725262672290,0.18734559,57501.0,57498.0,0.0911]
[1725262672484,0.14,57502.0,57498.0,0.0911]
[1725262672681,0.18734559,57501.0,57498.0,0.61282]
[1725262672887,0.18734559,57501.0,57500.0,0.3608]
[1725262673183,0.19446381,57502.0,57500.0,1.48252]
[1725262673384,0.0004,57503.0,57501.0,0.52172]
[1725262673590,0.0004,57503.0,57502.0,0.52172]
[1725262673787,0.19446381,57502.0,57501.0,0.52172]
[1725262673996,0.0004,57502.0,57501.0,0.52172]
[1725262674295,0.0004,57502.0,57501.0,1.12172]
[1725262677096,0.0044,57502.0,57501.0,1.12172]
[1725262678681,0.0014,57502.0,57501.0,1.12172]
[1725262680189,0.0004,57502.0,57501.0,1.12172]
[1725262680493,0.0004,57502.0,57501.0,1.26172]
[1725262680700,0.0004,57503.0,57502.0,0.06087]
[1725262680895,0.3608,57509.0,57502.0,1.12172]
[1725262681084,0.18129754,57502.0,57501.0,0.0004]
[1725262681392,0.060867,57505.0,57501.0,0.0004]
[1725262681590,0.170867,57505.0,57501.0,0.0004]
[1725262681786,0.18129754,57504.0,57501.0,0.0004]
[1725262681991,0.29129754,57504.0,57501.0,0.0004]
[1725262682394,0.5008,57502.0,57501.0,0.0004]
[1725262682587,0.6108,57502.0,57501.0,0.0004]
[1725262682786,0.84366254,57502.0,57501.0,0.0004]
[1725262682986,0.90453254,57502.0,57501.0,0.0004]
[1725262684596,0.90853254,57502.0,57501.0,0.0004]
[1725262684797,0.91213286,57502.0,57501.0,0.0004]
[1725262690997,0.87013286,57502.0,57501.0,0.0004]
[1725262692307,1.93098286,57502.0,57490.0,0.08681561]
[1725262692603,1.93098286,57502.0,57472.0,0.13845866]
[1725262692604,0.5008,57491.0,57474.0,0.10384399]
[1725262692804,0.5008,57491.0,57474.0,0.0866691]
[1725262692805,0.14,57475.0,57474.0,0.0866691]
[1725262693004,0.25879916,57475.0,57469.0,0.0866691]
[1725262693215,0.25879916,57475.0,57454.0,0.08669144]
[1725262693216,0.3608,57470.0,57454.0,0.08669144]
[1725262693499,0.3608,57470.0,57442.0,0.0485]
[1725262693500,0.060921,57454.0,57442.0,0.08669144]
[1725262693700,0.14,57443.0,57437.0,0.43940198]
[1725262693903,0.14,57443.0,57442.0,0.3608]
[1725262693904,0.13,57443.0,57442.0,0.3608]
[1725262694104,0.33090175,57453.0,57442.0,0.3608]
[1725262694304,0.19891159,57442.0,57438.0,0.00088]
[1725262694507,0.19891159,57442.0,57437.0,0.36168]
[1725262694508,0.14,57440.0,57437.0,0.36168]
[1725262694804,0.19891159,57439.0,57437.0,0.3608]
[1725262694995,0.19091159,57439.0,57437.0,0.3608]
[1725262695200,0.1984924,57441.0,57437.0,0.3608]
[1725262695506,0.1984924,57442.0,57437.0,0.3608]
[1725262695699,0.1984924,57443.0,57437.0,0.3608]
[1725262696007,0.001,57440.0,57437.0,0.3748]
[1725262696207,0.3608,57442.0,57437.0,0.3748]
[1725262696393,0.18825997,57439.0,57437.0,0.3748]
[1725262696598,0.3608,57442.0,57437.0,0.3748]
[1725262696599,0.18825997,57441.0,57437.0,0.3748]
[1725262696905,0.001,57443.0,57437.0,0.3748]
[1725262697108,0.18775613,57441.0,57437.0,0.3748]
[1725262697512,0.001,57439.0,57437.0,0.3748]
[1725262698010,0.18775613,57438.0,57437.0,0.3698]
[1725262698195,0.060944,57433.0,57430.0,0.001]
[1725262698508,0.060944,57433.0,57410.0,0.3608]
[1725262698509,0.06095,57427.0,57410.0,0.3608]
[1725262698818,0.14,57414.0,57410.0,0.3468]
[1725262699007,0.3608,57423.0,57413.0,0.14]
[1725262699206,0.3608,57437.0,57421.0,0.3608]
[1725262699411,0.3608,57437.0,57414.0,0.0483]
[1725262699412,0.18685555,57422.0,57414.0,0.0483]
[1725262699796,0.14,57425.0,57414.0,0.0483]
[1725262699994,0.0004,57415.0,57414.0,0.0483]
[1725262700202,0.14,57420.0,57414.0,0.583483]
[1725262700512,0.14,57424.0,57414.0,0.0004]
[1725262700803,0.00126101,57428.0,57414.0,0.0004]
[1725262700804,0.20192752,57419.0,57414.0,0.0004]
[1725262701006,0.34192752,57420.0,57413.0,0.3472]
[1725262701313,0.3626,57423.0,57413.0,0.3472]
[1725262701500,0.19430098,57419.0,57413.0,0.3472]
[1725262701900,0.19430098,57422.0,57418.0,0.3608]
[1725262702200,0.14026101,57428.0,57418.0,0.3608]
[1725262702398,0.19272502,57423.0,57418.0,0.3608]
[1725262702605,0.19272502,57427.0,57413.0,0.4872]
[1725262702606,0.3608,57425.0,57413.0,0.48808]
[1725262702901,0.3608,57425.0,57413.0,0.4872]
[1725262703104,0.19272502,57422.0,57413.0,0.4872]
[1725262703298,0.19272502,57424.0,57419.0,0.3608]
[1725262703500,0.14,57420.0,57413.0,0.34808]
[1725262703709,0.14,57416.0,57413.0,0.3472]
[1725262703897,0.5008,57416.0,57406.0,0.3608]
[1725262704298,0.18253777,57415.0,57407.0,0.06097]
[1725262704510,0.18253777,57415.0,57409.0,0.060968]
[1725262704804,0.33253777,57415.0,57410.0,0.060967]
[1725262705211,0.19253777,57415.0,57406.0,0.3608]
[1725262705412,0.18253777,57415.0,57413.0,0.060964]
[1725262705712,0.18253777,57415.0,57414.0,0.14]
[1725262705904,0.18253777,57415.0,57414.0,0.75752]
[1725262706100,0.18253777,57415.0,57414.0,1.35752]
[1725262706508,0.00026123,57418.0,57415.0,0.060962]
[1725262706702,0.00026123,57418.0,57417.0,0.14]
[1725262706903,0.3608,57431.0,57418.0,0.00026123]
[1725262707110,0.14,57422.0,57418.0,0.00026123]
[1725262707311,0.25,57422.0,57418.0,0.00026123]
[1725262707611,0.2008953,57421.0,57418.0,0.00026123]
[1725262708211,0.18142467,57425.0,57418.0,0.00026123]
[1725262708422,0.3608,57420.0,57418.0,0.00026123]
[1725262708713,0.4708,57420.0,57418.0,0.00026123]
[1725262708918,0.18116344,57419.0,57418.0,0.00026123]
[1725262710218,0.060975,57403.0,57402.0,0.00088]
[1725262710419,0.060975,57403.0,57392.0,0.3608]
[1725262710420,0.060979,57399.0,57392.0,0.3608]
[1725262710717,0.5012,57403.0,57392.0,0.3608]
[1725262710718,0.1404,57393.0,57392.0,0.3608]
[1725262710909,0.0004,57393.0,57392.0,0.3608]
[1725262711107,0.19694783,57393.0,57392.0,0.3608]
[1725262711308,0.19694783,57393.0,57392.0,4.1308]
[1725262712609,0.19694783,57393.0,57392.0,4.79352]
[1725262712810,0.00026123,57398.0,57392.0,5.39352]
[1725262713014,0.00026123,57398.0,57397.0,0.3608]
[1725262713218,0.00026123,57398.0,57397.0,0.4078]
[1725262713416,0.00026123,57398.0,57397.0,1.53048]
[1725262713806,0.00026123,57398.0,57397.0,1.591461]
[1725262714012,0.5408,57415.0,57403.0,0.060975]
[1725262714209,0.6508,57415.0,57404.0,0.4096]
[1725262714517,0.19892085,57411.0,57404.0,0.4096]
[1725262714812,0.19892085,57414.0,57406.0,0.060971]
[1725262715015,0.4972237,57415.0,57406.0,0.060971]
[1725262715215,0.19027612,57410.0,57407.0,0.06097]
[1725262715415,0.19027612,57414.0,57409.0,0.3608]
[1725262715604,0.00026123,57416.0,57409.0,0.3608]
[1725262715919,0.19027612,57412.0,57409.0,0.3608]
[1725262716121,0.00026123,57416.0,57409.0,0.3608]
[1725262716412,0.19755511,57415.0,57414.0,0.421763]
[1725262716808,0.19755511,57419.0,57414.0,4.65332]
[1725262717008,0.19755511,57427.0,57416.0,0.18]
[1725262717221,0.421748,57429.0,57421.0,0.3608]
[1725262717222,0.3608,57429.0,57421.0,0.3608]
[1725262717514,0.00026123,57431.0,57428.0,0.3608]
[1725262717912,0.18300409,57431.0,57429.0,0.583307]
[1725262718207,0.00026123,57431.0,57429.0,0.060947]
[1725262718407,0.19335326,57430.0,57429.0,0.583307]
[1725262718614,0.19335326,57430.0,57429.0,0.060947]
[1725262718815,0.19335326,57430.0,57429.0,0.583307]
[1725262719120,0.14108705,57430.0,57429.0,0.060947]
[1725262720320,0.00026123,57431.0,57429.0,1.183307]
[1725262720522,0.00026123,57431.0,57430.0,0.52276]
[1725262720908,0.00026123,57431.0,57430.0,1.12276]
[1725262721513,0.00026123,57431.0,57430.0,1.25542537]
[1725262721824,0.240932,57444.0,57430.0,1.61622537]
[1725262722118,0.240932,57444.0,57443.0,0.0004]
[1725262722517,0.43308403,57444.0,57443.0,0.0004]
[1725262722810,0.44308403,57444.0,57443.0,0.0004]
[1725262723019,0.26308403,57444.0,57443.0,0.0004]
[1725262724315,0.44308403,57444.0,57443.0,0.0004]
[1725262725921,0.01,57444.0,57443.0,1.12264]
[1725262726227,0.3608,57461.0,57443.0,0.13304446]
[1725262726415,0.3608,57461.0,57460.0,0.0004]
[1725262726920,0.55153079,57461.0,57460.0,0.0004]
[1725262727310,0.67153079,57461.0,57460.0,0.0004]
[1725262731330,1.19361079,57461.0,57460.0,0.0004]
[1725262732125,0.060914,57460.0,57455.0,0.00026123]
[1725262732314,0.5412,57456.0,57455.0,0.00026123]
[1725262732516,0.6612,57456.0,57455.0,0.00026123]
[1725262732826,0.8559941,57456.0,57455.0,0.00026123]
[1725262733413,0.9169131,57456.0,57442.0,0.3608]
[1725262733618,0.0004,57443.0,57442.0,0.3608]
[1725262733925,0.19444945,57443.0,57442.0,0.3608]
[1725262734429,0.30444945,57443.0,57442.0,0.3608]
[1725262737317,0.30804996,57443.0,57442.0,0.3608]
[1725262737523,0.30444945,57443.0,57442.0,0.3608]
[1725262739126,0.30444945,57443.0,57439.0,0.060936]
[1725262739322,0.30444945,57443.0,57441.0,0.3608]
[1725262739527,0.30404945,57443.0,57441.0,0.3608]
[1725262739921,0.30404945,57443.0,57442.0,0.060934]
[1725262740321,0.30404945,57443.0,57442.0,3.830934]
[1725262740824,0.30404945,57443.0,57438.0,0.06906334]
[1725262741032,0.060938,57438.0,57437.0,0.00026123]
[1725262741228,0.171338,57438.0,57437.0,0.00026123]
[1725262741422,0.37194396,57438.0,57437.0,0.00026123]
[1725262743632,0.37558103,57438.0,57437.0,0.00026123]
[1725262744836,0.31464303,57438.0,57437.0,0.00026123]
[1725262745028,0.31464303,57438.0,57437.0,0.06932457]
[1725262745220,0.31464303,57438.0,57437.0,0.04806123]
[1725262745631,0.20100596,57438.0,57437.0,0.57038123]
[1725262746327,0.20100596,57438.0,57437.0,0.65682292]
[1725262746531,0.20100596,57438.0,57437.0,0.57038123]
[1725262746931,0.20100596,57438.0,57437.0,0.65682292]
[1725262747127,0.20100596,57438.0,57437.0,0.71776192]
[1725262747335,0.0004,57439.0,57438.0,0.060938]
[1725262747628,0.0004,57439.0,57438.0,1.31632311]
[1725262748431,0.240921,57455.0,57438.0,1.31632311]
[1725262748432,0.060921,57455.0,57446.0,0.060929]
[1725262748730,0.060921,57455.0,57447.0,0.32933732]
[1725262748940,0.060921,57455.0,57447.0,0.76480577]
[1725262749130,0.060921,57455.0,57447.0,1.3647988]
[1725262749329,0.060921,57455.0,57447.0,1.45156739]
[1725262749537,0.060921,57455.0,57447.0,5.1347988]
[1725262749938,0.00370262,57459.0,57447.0,5.1347988]
[1725262750134,0.3608,57463.0,57447.0,5.1347988]
[1725262750335,0.00363023,57462.0,57447.0,5.1347988]
[1725262750726,0.421712,57463.0,57447.0,5.1347988]
[1725262750931,0.060912,57463.0,57457.0,0.060917]
[1725262751135,0.11,57463.0,57462.0,0.0004]
[1725262751345,0.4708,57463.0,57462.0,0.0004]
[1725262751534,0.66365095,57463.0,57462.0,0.0004]
[1725262753040,0.30285095,57463.0,57462.0,0.0004]
[1725262753727,0.19285095,57463.0,57462.0,0.0004]
[1725262754130,0.19181923,57467.0,57462.0,0.0004]
[1725262754330,0.06494131,57468.0,57462.0,0.0004]
[1725262754538,0.06494131,57468.0,57467.0,0.0004]
[1725262754539,0.09116723,57468.0,57467.0,0.0004]
[1725262755043,0.28937599,57468.0,57467.0,0.0004]
[1725262755340,0.29299498,57468.0,57467.0,0.0004]
[1725262758533,0.34229498,57468.0,57467.0,0.0004]
[1725262759041,0.34229498,57468.0,57452.0,0.0693997]
[1725262759042,0.060917,57458.0,57452.0,0.0693997]
[1725262759245,0.180917,57458.0,57451.0,0.0693997]
[1725262759543,0.38333535,57458.0,57451.0,0.0693997]
[1725262759742,0.38333535,57458.0,57455.0,0.05199285]
[1725262760145,0.38333535,57458.0,57454.0,0.05199285]
[1725262760340,0.38333535,57458.0,57453.0,0.05199285]
[1725262760949,0.38333535,57458.0,57446.0,0.3608]
[1725262760950,0.96637235,57458.0,57449.0,0.05199285]
[1725262761143,0.060926,57449.0,57448.0,0.05199285]
[1725262761348,0.060926,57449.0,57439.0,0.0933]
[1725262761349,0.181326,57449.0,57447.0,0.05199285]
[1725262761645,0.181326,57449.0,57438.0,0.3608]
[1725262761646,0.06093,57445.0,57444.0,0.05199285]
[1725262761845,0.36133,57445.0,57443.0,0.05199285]
[1725262762054,0.0004,57444.0,57443.0,0.05199285]
[1725262762244,0.0004,57444.0,57439.0,0.0693997]
[1725262762245,0.4812,57444.0,57441.0,0.05199285]
[1725262762542,0.060935,57441.0,57440.0,0.05199285]
[1725262762748,0.181335,57441.0,57439.0,0.05199285]
[1725262762939,0.241336,57440.0,57438.0,0.05225408]
[1725262763143,0.360936,57440.0,57438.0,0.00026123]
[1725262763337,0.19092768,57439.0,57438.0,0.00026123]
[1725262763651,0.31052768,57439.0,57438.0,0.00026123]
[1725262766043,0.31052768,57439.0,57438.0,0.05225408]
[1725262766242,0.19052768,57439.0,57438.0,0.05225408]
[1725262766455,0.19052768,57439.0,57438.0,0.00026123]
[1725262766962,0.19052768,57439.0,57438.0,0.05225408]
[1725262767349,0.19052768,57439.0,57438.0,0.00026123]
[1725262767551,0.19052768,57439.0,57438.0,0.05225408]
[1725262768046,0.19052768,57439.0,57438.0,0.00026123]
[1725262768250,0.19052768,57439.0,57438.0,0.05223197]
[1725262768440,0.19052768,57439.0,57438.0,0.05223488]
[1725262769652,0.19052768,57439.0,57438.0,1.35451488]
[1725262769852,0.421724,57451.0,57438.0,1.30254123]
[1725262770054,0.1204,57449.0,57448.0,0.0004]
[1725262770251,0.12400223,57449.0,57448.0,0.0004]
[1725262770449,0.3164061,57449.0,57448.0,0.0004]
[1725262770647,0.3773321,57449.0,57448.0,0.0004]
[1725262770846,0.37372987,57449.0,57448.0,0.0004]
[1725262771849,0.31280387,57449.0,57448.0,0.0004]
[1725262772157,0.31280387,57449.0,57448.0,0.05236688]
[1725262772357,0.31280387,57449.0,57448.0,0.0004]
[1725262772855,0.19280387,57449.0,57448.0,0.0004]
[1725262773450,0.19280387,57449.0,57448.0,1.1226]
[1725262773654,0.0004,57449.0,57448.0,1.1226]
[1725262773873,0.0004,57449.0,57448.0,1.183527]
[1725262775058,0.0004,57449.0,57448.0,1.40290029]
[1725262775359,0.06458047,57465.0,57458.0,0.060916]
[1725262775554,0.19458047,57465.0,57464.0,0.0004]
[1725262775958,0.39610491,57465.0,57464.0,0.0004]
[1725262777158,0.57610491,57465.0,57464.0,0.0004]
[1725262782658,0.39610491,57465.0,57464.0,0.0004]
[1725262786262,0.26610491,57465.0,57464.0,0.0004]
[1725262787358,0.26610491,57465.0,57464.0,3.7704]
[1725262787759,0.26610491,57465.0,57464.0,0.0004]
[1725262788055,0.26610491,57465.0,57464.0,0.05238786]
[1725262788877,0.26610491,57465.0,57464.0,0.0004]
[1725262789866,0.26610491,57465.0,57464.0,0.3612]
[1725262790463,0.00026123,57470.0,57464.0,1.06328]
[1725262790667,0.00026123,57470.0,57469.0,0.3612]
[1725262790877,0.00026123,57470.0,57469.0,0.41316459]
[1725262791168,0.19271362,57470.0,57469.0,0.3612]
[1725262791369,0.19271362,57470.0,57469.0,0.422105]
[1725262791577,0.00026123,57470.0,57469.0,1.544105]
[1725262792067,0.060889,57484.0,57469.0,1.4832]
[1725262792263,0.060889,57484.0,57483.0,0.0004]
[1725262792264,0.070889,57484.0,57483.0,0.0004]
[1725262792657,0.2584061,57484.0,57483.0,0.0004]
[1725262794171,0.4992951,57484.0,57483.0,0.0004]
[1725262795863,0.4384061,57484.0,57483.0,0.0004]
[1725262796065,0.2584061,57484.0,57483.0,0.0004]
[1725262797366,0.4384061,57484.0,57483.0,0.0004]
[1725262797667,0.121788,57479.0,57478.0,0.00026101]
[1725262797874,0.782988,57479.0,57478.0,0.00026101]
[1725262798066,0.94093718,57479.0,57478.0,0.00026101]
[1725262798564,0.88004318,57479.0,57478.0,0.00026101]
[1725262800870,0.88004318,57479.0,57467.0,0.0519776]
[1725262800871,0.060904,57471.0,57467.0,0.0519776]
[1725262801077,0.060919,57456.0,57452.0,0.05198272]
[1725262801274,0.060926,57450.0,57445.0,0.05198272]
[1725262801469,0.0004,57446.0,57445.0,0.05198272]
[1725262801672,0.060929,57447.0,57444.0,0.05198272]
[1725262801970,0.0004,57445.0,57443.0,0.14918272]
[1725262802169,0.0004,57444.0,57443.0,0.14918272]
[1725262802477,0.19518271,57444.0,57443.0,0.0972]
[1725262802669,0.19518271,57444.0,57443.0,0.0479]
[1725262803275,0.19518271,57444.0,57440.0,0.43031116]
[1725262803471,0.25611471,57444.0,57442.0,0.05200166]
[1725262803675,0.36571471,57444.0,57441.0,0.05200166]
[1725262803975,0.0004,57442.0,57440.0,0.41306267]
[1725262804177,0.0404,57442.0,57440.0,0.41306267]
[1725262804372,0.18204299,57441.0,57440.0,0.36106101]
[1725262804577,0.26204299,57441.0,57440.0,0.36106101]
[1725262805272,0.18204299,57441.0,57440.0,0.36106101]
[1725262806085,0.22204299,57441.0,57440.0,0.36106101]
[1725262806964,0.18204299,57441.0,57440.0,0.36106101]
[1725262808375,0.18204299,57441.0,57440.0,1.02334101]
[1725262808376,0.0004,57441.0,57440.0,1.02334101]
[1725262808577,0.0004,57441.0,57440.0,1.06894101]
[1725262808778,0.0004,57441.0,57440.0,1.11824101]
[1725262809081,0.0004,57441.0,57440.0,1.18742649]
[1725262809280,0.0004,57441.0,57440.0,1.78742649]
[1725262811275,0.00026101,57451.0,57450.0,0.060925]
[1725262811777,0.1899544,57451.0,57450.0,0.061325]
[1725262812273,0.1899544,57451.0,57450.0,0.0004]
[1725262813477,0.00026101,57451.0,57450.0,0.0004]
[1725262813982,0.00026101,57451.0,57450.0,1.4834]
[1725262814375,0.00026101,57451.0,57450.0,1.55258548]
[1725262814578,0.3608,57464.0,57450.0,1.55258548]
[1725262814886,0.00362686,57464.0,57463.0,0.0004]
[1725262815083,0.060905,57469.0,57463.0,0.0004]
[1725262815379,0.18554904,57464.0,57463.0,0.0004]
[1725262815677,0.06116601,57469.0,57462.0,0.060912]
[1725262815868,0.06116601,57469.0,57468.0,0.0004]
[1725262816072,0.00026101,57469.0,57468.0,0.0004]
[1725262816283,0.19629964,57469.0,57468.0,0.0004]
[1725262821084,0.19629964,57469.0,57468.0,0.061306]
[1725262821981,0.19629964,57469.0,57468.0,0.201306]
[1725262822886,0.19629964,57469.0,57468.0,0.0004]
[1725262823084,0.29720464,57469.0,57468.0,0.0004]
[1725262823977,0.25720464,57469.0,57468.0,0.0004]
[1725262824583,0.19629964,57469.0,57468.0,0.0004]
[1725262824783,0.19629964,57469.0,57468.0,0.061306]
[1725262824976,0.25720464,57469.0,57468.0,0.0004]
[1725262825176,0.36720464,57469.0,57468.0,0.0004]
[1725262827378,0.42810964,57469.0,57468.0,0.0004]
[1725262827578,0.36720464,57469.0,57468.0,0.0004]
[1725262828198,0.37093901,57469.0,57468.0,0.0004]
[1725262829786,0.26093901,57469.0,57468.0,0.0004]
[1725262830187,0.25720464,57469.0,57468.0,0.0004]
[1725262831396,0.37720464,57469.0,57468.0,0.0004]
[1725262831991,0.37720464,57469.0,57468.0,0.3612]
[1725262832593,0.31629964,57469.0,57468.0,0.5012]
[1725262832898,0.19629964,57469.0,57468.0,0.5012]
[1725262833782,0.19629964,57469.0,57468.0,0.3612]
[1725262834488,0.19629964,57469.0,57468.0,0.4130569]
[1725262834891,0.19629964,57469.0,57468.0,0.3612]
[1725262835482,0.19629964,57469.0,57468.0,0.4130569]
[1725262835692,0.19629964,57469.0,57468.0,0.3612]
[1725262836091,0.19629964,57469.0,57468.0,0.4130569]
[1725262836693,0.19629964,57469.0,57468.0,0.3612]
[1725262836894,0.19629964,57469.0,57468.0,0.422106]
[1725262837488,0.15277111,57469.0,57468.0,0.562106]
[1725262838405,0.200898,57476.0,57469.0,0.060905]
[1725262838590,0.250898,57476.0,57475.0,0.0004]
[1725262838789,0.05,57476.0,57475.0,0.061299]
[1725262839002,0.18740133,57476.0,57475.0,0.11332685]
[1725262839401,0.18740133,57476.0,57475.0,0.061299]
[1725262840108,0.18740133,57476.0,57475.0,0.11333487]
[1725262840602,0.18740133,57476.0,57475.0,0.061299]
[1725262841992,0.18740133,57476.0,57475.0,0.201299]
[1725262842304,0.00361065,57477.0,57475.0,0.27066946]
[1725262842600,0.00016738,57478.0,57476.0,0.06937046]
[1725262842794,0.00016738,57478.0,57477.0,0.0004]
[1725262843202,0.18251105,57478.0,57477.0,0.0004]
[1725262843497,0.18251105,57478.0,57477.0,0.06977046]
[1725262843701,0.18251105,57478.0,57477.0,0.0004]
[1725262843906,0.00016738,57478.0,57477.0,0.0004]
[1725262844406,0.00016738,57478.0,57477.0,0.061296]
[1725262845107,0.00016738,57478.0,57477.0,0.110596]
[1725262845905,0.00016738,57478.0,57477.0,0.205596]
[1725262850198,0.00016738,57478.0,57477.0,0.110596]
[1725262850400,0.19982296,57478.0,57477.0,0.13069158]
[1725262850608,0.19982296,57478.0,57477.0,0.061296]
[1725262851112,0.40071796,57478.0,57477.0,0.0004]
[1725262852612,0.26071796,57478.0,57477.0,0.0004]
[1725262855400,0.26071796,57478.0,57477.0,0.05245204]
[1725262856605,0.26071796,57478.0,57477.0,0.05246015]
[1725262857814,0.26071796,57478.0,57477.0,0.0004]
[1725262858001,0.26071796,57478.0,57477.0,0.05246015]
[1725262858411,0.26071796,57478.0,57477.0,0.0004]
[1725262858610,0.26071796,57478.0,57477.0,0.05248085]
[1725262858611,0.40071796,57478.0,57477.0,0.05248085]
[1725262859006,0.40071796,57478.0,57477.0,0.0004]
[1725262859399,0.40071796,57478.0,57477.0,0.05248085]
[1725262859600,0.40071796,57478.0,57477.0,0.0004]
[1725262859809,1.11156329,57478.0,57477.0,0.0004]
[1725262860110,1.10357296,57478.0,57477.0,0.0004]
[1725262860415,1.70357296,57478.0,57477.0,0.0004]
[1725262860617,1.10357296,57478.0,57477.0,0.0004]
[1725262861604,0.65044547,57478.0,57477.0,0.0004]
[1725262861804,0.52071796,57478.0,57477.0,0.0004]
[1725262862213,0.52071796,57478.0,57477.0,0.05248085]
[1725262863709,0.52071796,57478.0,57477.0,0.0004]
[1725262864313,0.52071796,57478.0,57477.0,0.05252613]
[1725262865015,0.52071796,57478.0,57477.0,0.0004]
[1725262865207,0.38071796,57478.0,57477.0,0.0004]
[1725262865714,0.31982296,57478.0,57477.0,0.0004]
[1725262866010,0.31982296,57478.0,57477.0,0.06979558]
[1725262866011,0.19982296,57478.0,57477.0,0.06979558]
[1725262866219,0.19982296,57478.0,57477.0,0.0004]
[1725262867817,0.19982296,57478.0,57477.0,0.0699075]
[1725262868216,0.19982296,57478.0,57477.0,0.0004]
[1725262868514,0.26071796,57478.0,57477.0,0.06990995]
[1725262868819,0.31234957,57478.0,57477.0,0.0004]
[1725262869128,0.42234957,57478.0,57477.0,0.0004]
[1725262870313,0.37071796,57478.0,57477.0,0.06990995]
[1725262871117,0.37071796,57478.0,57477.0,0.0004]
[1725262872005,0.37071796,57478.0,57477.0,0.05253576]
[1725262873106,0.37071796,57478.0,57477.0,0.0004]
[1725262873313,0.37071796,57478.0,57477.0,0.05253576]
[1725262876517,0.37071796,57478.0,57477.0,0.0004]
[1725262876816,0.73151796,57478.0,57477.0,0.0004]
[1725262877722,0.78317022,57478.0,57477.0,0.06990995]
[1725262877918,0.78317022,57478.0,57477.0,0.0004]
[1725262878113,0.73151796,57478.0,57477.0,0.0004]
[1725262878513,0.78317022,57478.0,57477.0,0.0004]
[1725262878816,0.73151796,57478.0,57477.0,0.0004]
[1725262879016,0.37071796,57478.0,57477.0,0.0004]
[1725262881431,0.26071796,57478.0,57477.0,0.0004]
[1725262881817,0.31240556,57478.0,57477.0,0.0004]
[1725262882022,0.26071796,57478.0,57477.0,0.0004]
[1725262882228,0.31240571,57478.0,57477.0,0.0004]
[1725262882730,0.25151048,57478.0,57477.0,0.0004]
[1725262882919,0.00016738,57478.0,57477.0,0.21962605]
[1725262883121,0.00016738,57478.0,57477.0,0.49377215]
[1725262883425,0.00016738,57478.0,57477.0,4.26377215]
[1725262883819,0.00016738,57478.0,57477.0,4.32466815]
[1725262884739,0.06883251,57487.0,57477.0,4.32466815]
[1725262884740,0.05168752,57492.0,57477.0,5.54707514]
[1725262885025,0.05168752,57493.0,57491.0,0.0004]
[1725262885229,0.06088,57493.0,57492.0,0.0004]
[1725262885431,0.25024692,57493.0,57492.0,0.0004]
[1725262885725,0.06088,57493.0,57492.0,0.0004]
[1725262886029,0.36367713,57493.0,57492.0,0.05252173]
[1725262886233,0.36367713,57493.0,57492.0,0.0004]
[1725262887125,0.41531475,57493.0,57492.0,0.05252173]
[1725262887335,0.41531475,57493.0,57492.0,0.0004]
[1725262887918,0.36367713,57493.0,57492.0,0.0004]
[1725262888427,0.25367713,57493.0,57492.0,0.0004]
[1725262889519,0.25367713,57493.0,57492.0,0.05252173]
[1725262891325,0.72447713,57493.0,57492.0,0.0004]
[1725262891531,0.77611475,57493.0,57492.0,0.0004]
[1725262891727,0.79330964,57493.0,57492.0,0.0004]
[1725262894438,0.72447713,57493.0,57492.0,0.0004]
[1725262894630,0.77605338,57493.0,57492.0,0.0004]
[1725262894824,0.66605338,57493.0,57492.0,0.0004]
[1725262895234,0.78605227,57493.0,57492.0,0.0004]
[1725262897436,0.78604722,57493.0,57492.0,0.0004]
[1725262898347,0.73447713,57493.0,57492.0,0.0004]
[1725262903737,0.78604722,57493.0,57492.0,0.0004]
[1725262903945,0.84692722,57493.0,57492.0,0.0004]
[1725262904241,0.12177,57488.0,57487.0,0.00026101]
[1725262904540,0.7875865,57488.0,57487.0,0.00026101]
[1725262904735,0.83916594,57488.0,57487.0,0.00026101]
[1725262904941,0.7875865,57488.0,57487.0,0.00026101]
[1725262905447,0.060894,57479.0,57478.0,0.05212173]
[1725262905638,0.060895,57478.0,57477.0,0.05212173]
[1725262905829,0.181295,57478.0,57477.0,0.05212173]
[1725262906138,0.36947061,57478.0,57477.0,0.05212173]
[1725262906738,0.36947061,57478.0,57475.0,0.05212173]
[1725262906739,0.060898,57476.0,57475.0,0.05212173]
[1725262906945,0.061298,57476.0,57475.0,0.05212173]
[1725262907146,0.25478741,57476.0,57475.0,0.05212173]
[1725262908740,0.61558741,57476.0,57475.0,0.05212173]
[1725262909133,0.19388941,57476.0,57475.0,0.05212173]
[1725262909448,0.0004,57476.0,57475.0,0.582859]
[1725262909838,0.0004,57476.0,57475.0,1.182859]
[1725262910033,0.0004,57476.0,57475.0,4.952859]
[1725262910444,0.0004,57476.0,57475.0,5.53302552]
[1725262910946,0.0004,57476.0,57475.0,5.44622202]
[1725262911934,0.0004,57476.0,57475.0,4.32426202]
[1725262912130,0.0004,57476.0,57475.0,4.41107222]
[1725262912338,0.0004,57476.0,57475.0,4.2785092]
[1725262912541,0.0004,57476.0,57475.0,4.41107498]
[1725262913338,0.0004,57476.0,57475.0,4.93303498]
[1725262913740,0.0004,57476.0,57475.0,4.84622478]
[1725262913936,0.0004,57476.0,57475.0,4.32426478]
[1725262914740,0.0004,57476.0,57475.0,4.84622478]
[1725262915347,0.0004,57476.0,57475.0,5.44622478]